Cogmind - Beta 12 @@@ ROGUE MODE // 2023.11.25 @ 14:07:32 Player: Tim Result: Destroyed by Y-45 Defender with Beam Rifle Performance ------------- Evolutions (1) 500 Regions Visited (2) 400 Robots Destroyed (13) 65 Value Destroyed (407) 407 Prototype IDs (0) 0 Alien Tech Used (0) 0 Bonus (0) 0 TOTAL SCORE: 1372 Bonus ------- None Cogmind --------- Core Integrity 0/400 Matter 263/300 Energy 100/100 System Corruption 0% Temperature Cool (9) Movement Core (700) Ox13 Location -9/Materials Parts ------- > --- POWER (1) -------- (None) > --- PROPULSION (3) --- (None) > --- UTILITY (3) ------ High-capacity Storage Unit Core Shielding Core Shielding > --- WEAPON (2) ------- (None) > --- INVENTORY (20) --- Small Storage Unit Peak State ------------ > --- POWER ------------ Light Ion Engine > --- PROPULSION ------- Aluminum Leg Aluminum Leg Aluminum Leg > --- UTILITY ---------- High-capacity Storage Unit Core Shielding Tractor Beam > --- WEAPON ----------- Small Laser Light Assault Rifle > --- INVENTORY -------- Ion Engine Small Storage Unit Core Shielding Assault Rifle Grenade Launcher [Rating: 9] Favorites ----------- Power Light Ion Engine Engine Light Ion Engine Propulsion Aluminum Leg Leg Aluminum Leg Utility Core Shielding Device Tractor Beam Storage High-capacity Storage Unit Protection Core Shielding Weapon Light Assault Rifle Energy Gun Small Laser Ballistic Gun Light Assault Rifle Launcher Grenade Launcher Special Weapon Welding Torch Build | -11 -10 -9 ------- Run | Jun Mat Mat Slots Evolved 2 | . . 2 Power . | . . . Propulsion 1 | . . 1 Utility 1 | . . 1 Weapon . | . . . Parts Attached 20 | 8 3 9 Power 2 | 1 . 1 Engine 2 | 1 . 1 Core . | . . . Reactor . | . . . Propulsion 5 | 2 . 3 Treads . | . . . Leg 5 | 2 . 3 Wheel . | . . . Hover . | . . . Flight . | . . . Utility 6 | 1 3 2 Device 2 | . 1 1 Storage 2 | 1 1 . Processor . | . . . Hackware . | . . . Protection 2 | . 1 1 Artifact . | . . . Weapon 7 | 4 . 3 Energy Gun 1 | 1 . . Energy Cannon . | . . . Ballistic Gun 4 | 3 . 1 Ballistic Cannon . | . . . Launcher 1 | . . 1 Special Weapon 1 | . . 1 Impact Weapon . | . . . Slashing Weapon . | . . . Piercing Weapon . | . . . Special Melee Weapon . | . . . Unidentified Prototypes . | . . . Parts Lost 13 | . . 13 Power 2 | . . 2 Propulsion 5 | . . 5 Utility 1 | . . 1 Weapon 5 | . . 5 Highest Loss Streak 10 | . . 10 To Critical Strikes 1 | . . 1 Average Slot Usage (%) 88 | . 90 85 Engine 11 | . 14 8 Leg 27 | . 28 26 Device 1 | . . 4 Storage 12 | . 14 11 Protection 10 | . 4 17 Energy Gun 11 | . 14 7 Ballistic Gun 11 | . 14 8 Naked Turns . | . . . Heaviest Build 49 | 11 46 49 Greatest Support 30 | 20 20 30 Greatest Overweight (x) 14 | 3 2 14 Average Overweight (x) . | . . 1 Largest Inventory Capacity 20 | 8 20 20 Average Capacity 14 | 6 11 20 Most Carried 7 | 5 7 7 Average Carried 4 | 2 4 4 Final Capacity 20 | 8 20 20 Final Carried 7 | 2 7 1 Class Distribution -------------------- 100% | Mutant Dominant Class ---------------- Mutant | -10/Materials Mutant | -9/Materials Resources | -11 -10 -9 ----------- Run | Jun Mat Mat Matter Collected 425 | 266 54 105 Remotely 49 | . . 49 Salvage Created 358 | . 62 296 Parts 23 | . 2 21 Haulers Intercepted . | . . . Recyclers Shooed 1 | . . 1 Parts Field Recycled . | . . . Retrieved Matter . | . . . Parts Self-Destructed . | . . . Prevented . | . . . Kills | -11 -10 -9 ------- Run | Jun Mat Mat Combat Hostiles Destroyed 10 | . 2 8 Guns 7 | . 2 5 AOE 3 | . . 3 Classes Destroyed 4 | . 1 3 Builder 2 | . . 2 Mechanic 1 | . . 1 Grunt 9 | . 2 7 Sentry 1 | . . 1 Best Kill Streak 6 | . 1 6 Combat Bots Only 3 | . 1 3 Max Kills in Single Turn 2 | . 1 2 Gunslinging . | . . . Exploded 2 | . . 2 Melee . | . . . Uniques/NPCs Destroyed . | . . . Combat | -11 -10 -9 -------- Run | Jun Mat Mat Damage Taken 1553 | . 117 1436 Core 439 | . 32 407 Absorbed by Shields . | . . . Redirected to Shielding 89 | . . 89 Core Remaining (%) 93 | 100 87 . Volleys Fired 47 | . 10 37 Largest 2 | . 2 2 Hottest 60 | . 60 60 Shots Fired 85 | . 20 65 Gun 80 | . 20 60 Cannon . | . . . Launcher 5 | . . 5 Special . | . . . Kinetic 45 | . 10 35 Thermal 35 | . 10 25 Explosive 5 | . . 5 Electromagnetic . | . . . Robot Hit Streak 11 | . 5 11 Robot Miss Streak 3 | . 3 2 Penetration Max . | . . . Secondary Targets . | . . . Shots Hit Robots 53 | . 11 42 Core Hits 28 | . 4 24 Critical Kills . | . . . Critical Parts Destroyed . | . . . Critical Strikes . | . . . Melee Attacks . | . . . Impact . | . . . Slashing . | . . . Piercing . | . . . Sneak Attacks . | . . . Combat Hostiles . | . . . Follow-up Attacks . | . . . Damage Inflicted 941 | . 107 834 Guns 515 | . 107 408 Cannons . | . . . Explosions 426 | . . 426 Melee . | . . . Ramming . | . . . Kinetic 267 | . 61 206 Thermal 248 | . 46 202 Explosive 426 | . . 426 Electromagnetic . | . . . Impact . | . . . Slashing . | . . . Piercing . | . . . Highest Corruption . | . . . Average Corruption . | . . . Corruption Purged . | . . . Corruption Blocked . | . . . Overload Shots . | . . . Overflow Damage 16 | . . 16 Projectiles . | . . . Explosions 16 | . . 16 Melee . | . . . Knockbacks . | . . . Impact . | . . . Kinetic . | . . . Secondary . | . . . Self-Inflicted Damage 111 | . . 111 Shots 3 | . . 3 Rammed . | . . . Targets Rammed 1 | . . 1 Kicked 1 | . . 1 Crushed . | . . . Highest Temperature 70 | . 70 64 Average Temperature 28 | . 38 24 Received Heat Transfer 648 | . 66 582 Siege Activations . | . . . Robots Corrupted . | . . . Combat Hostiles . | . . . Parts Fried . | . . . Impact Corruptions . | . . . Robots Melted . | . . . Combat Hostiles . | . . . Parts Melted 1 | . . 1 Heat Transferred 550 | . 100 450 Parts Sabotaged . | . . . Parts Stolen . | . . . Parts Stripped . | . . . Power Chain Reactions . | . . . Missiles Intercepted . | . . . Alert | -11 -10 -9 ------- Run | Jun Mat Mat Peak Influence 185 | . 65 185 Initial . | . . . Average 45 | . 29 76 Maximum Alert Level . | . . . Low Security (%) 100 | 100 100 100 Level 1 . | . . . Level 2 . | . . . Level 3 . | . . . Level 4 . | . . . Level 5 . | . . . High Security . | . . . Max Security . | . . . Squads Dispatched 4 | . 3 1 Investigation 2 | . 2 . Extermination . | . . . Reinforcement 2 | . 1 1 Assault . | . . . Garrison . | . . . Intercept . | . . . Searches Triggered . | . . . Construction Impeded . | . . . Haulers Reinforced . | . . . Active Scanning Responses . | . . . Cargo Convoy Interrupts . | . . . Stealth | -11 -10 -9 --------- Run | Jun Mat Mat Distress Signals . | . . . Communications Jammed . | . . . Distress Signals . | . . . Times Spotted 12 | . 3 9 Peak Tracking Total 4 | . 2 4 Tactical Retreats 1 | . 1 . Traps | -11 -10 -9 ------- Run | Jun Mat Mat Traps Triggered . | . . . Indirectly . | . . . Trap Hack Attempts . | . . . Triggered . | . . . Disarmed . | . . . Reprogrammed . | . . . Reused . | . . . Traps Extracted . | . . . Installed . | . . . Triggered . | . . . Machines | -11 -10 -9 ---------- Run | Jun Mat Mat Machines Disabled 2 | . . 2 Max in Single Turn 2 | . . 2 Machines Repaired . | . . . Machines Sabotaged . | . . . Overloaded Fab Kills . | . . . Hacking | -11 -10 -9 --------- Run | Jun Mat Mat Machines Accessed 4 | . 3 1 Terminals 4 | . 3 1 Fabricators . | . . . Repair Stations . | . . . Recycling Units . | . . . Scanalyzers . | . . . Garrison Access . | . . . Total Hacks 11 | . 10 1 Successful 6 | . 5 1 Failed 5 | . 5 . Catastrophic 1 | . 1 . Database Lockouts . | . . . Manual 1 | . 1 . Terminals 11 | . 10 1 Fabricators . | . . . Repair Stations . | . . . Recycling Units . | . . . Scanalyzers . | . . . Garrison Access . | . . . Terminal Hacks 6 | . 5 1 Unreport Threat 1 | . 1 . Locate Traps 1 | . 1 . Dispatch Records 1 | . 1 . Maintenance Status 1 | . . 1 Zone Layout 2 | . 2 . Fabricator Hacks . | . . . Repair Station Hacks . | . . . Recycling Unit Hacks . | . . . Scanalyzer . | . . . Garrison Access Hacks . | . . . Unauthorized Hacks . | . . . Terminals . | . . . Fabricators . | . . . Repair Stations . | . . . Recycling Units . | . . . Scanalyzers . | . . . Garrison Access . | . . . Data Cores Recovered . | . . . Used . | . . . Hacking Detections 4 | . 3 1 Full Trace Events 2 | . 2 . Feedback Events . | . . . Feedback Blocked . | . . . Robot Schematics Acquired . | . . . Robots Built . | . . . Authchips . | . . . Time . | . . . Total Robot Build Rating . | . . . Part Schematics Acquired . | . . . Parts Built . | . . . Authchips . | . . . Time . | . . . Total Part Build Rating . | . . . Parts Repaired . | . . . Time . | . . . Parts Recycled . | . . . Recycled Matter . | . . . Retrieved Matter . | . . . Retrieved Components . | . . . Parts Scanalyzed . | . . . Part Schematics Acquired . | . . . Parts Damaged . | . . . Bothacking | -11 -10 -9 ------------ Run | Jun Mat Mat Used RIF Installer . | . . . Robots Hacked . | . . . Non-combat . | . . . Combat . | . . . Robot Hacks Applied . | . . . Relay Couplers Released . | . . . Fabnet Peak Effective % . | . . . Robots Rewired . | . . . Allies Hacked . | . . . Hacks Repelled . | . . . Allies | -11 -10 -9 -------- Run | Jun Mat Mat Total Allies . | . . . Largest Group . | . . . Highest-Rated Group . | . . . Highest-Rated Ally . | . . . Total Orders . | . . . Ally Attacks . | . . . Total Damage . | . . . Kills . | . . . Allies Corrupted . | . . . Allies Melted . | . . . Intel | -11 -10 -9 ------- Run | Jun Mat Mat Robot Analysis Total . | . . . Derelict Logs Recovered . | . . . Drone Launches . | . . . Drone Recoveries . | . . . Exploration | -11 -10 -9 ------------- Run | Jun Mat Mat Turns Passed 773 | 53 420 300 Spaces Moved 342 | 37 224 81 Core 26 | 22 . 4 Treads . | . . . Legs 316 | 15 224 77 Wheels . | . . . Hover . | . . . Flight . | . . . Fastest Speed 50 | 50 120 190 Average Speed 162 | 102 147 229 Slowest Speed 750 | 200 260 750 Overloaded Moves . | . . . Propulsion Burnouts . | . . . Robots Hopped . | . . . Cave-ins Triggered . | . . . Exploration Rate (%) 13 | 4 24 11 Regions Visited 2 Branch Regions . Pre-discovered Areas . | . . . Known Exits Taken . | . . . Unknown Exits Taken 2 | 1 1 . Scrap Searched . | . . . Spaces Dug . | . . . Terrain Destroyed 45 | . . 45 Melee . | . . . Projectile . | . . . AOE 45 | . . 45 Terrain Rammed . | . . . Walls Destroyed . | . . . Machines Disabled . | . . . Actions | -11 -10 -9 --------- Run | Jun Mat Mat Total 480 | 49 297 134 Wait 57 | . 54 3 Move 340 | 36 223 81 Hop . | . . . Pick Up 14 | 5 6 3 Fast Attach 3 | 3 . . Attach 14 | 3 2 9 Detach 1 | . 1 . Swap 3 | 2 1 . Drop . | . . . Fire 47 | . 10 37 Melee . | . . . Ram . | . . . Kick 1 | . . 1 Crush . | . . . Escape Stasis . | . . . Rewire . | . . . Trap . | . . . Miscellaneous . | . . . Route ------- -11/Junkyard -10/Materials -9/Materials History --------- Turn | Location | Event 9 | -11/Junkyard | Discovered new exit (range 15) 54 | -11/Junkyard | Entered Materials 84 | -10/Materials | Discovered new exit (range 19) 303 | -10/Materials | Build established: Mutant 474 | -10/Materials | Entered another Materials area 474 | -9/Materials | Evolved 2 slots: Propulsion x1, Utility x1 617 | -9/Materials | Lost 3 parts (1p1n1u) 730 | -9/Materials | Core integrity fell below 50% 763 | -9/Materials | Core integrity fell below 20% 774 | -9/Materials | Destroyed by Y-45 Defender with Beam Rifle Last Messages --------------- U-05 Engineer destroyed. Grenade Launcher destroyed. Destroyed Grenade Launcher. K-01 Serf collects debris. Kicked R-06 Scavenger. K-01 Serf collects debris. Acquired 8 matter. K-01 Serf collects debris. Acquired Welding Torch. Aluminum Leg destroyed. Critical hit (Burn: +37). The unstable cave ceiling collapses. K-01 Serf collects debris. Welding Torch destroyed. K-01 Serf collects debris. Critical hit (Burn: +37). K-01 Serf collects debris. R-06 Scavenger collects Terrain Scan Processor. R-06 Scavenger collects Lgt. Ion Engine. K-01 Serf collects debris. Map ----- +----------------------------------------------------+ | ???????????????????????????????????????????? | | ???????????????????????????????????????????? | | ???????????????????????????????????????????? | | ???????????????????????????????????????????? | | ??????????????????#????????????????????????? | | ?????????????????? ????????????????????????? | | ?????????????????? ????????????????????????? | | ?????????????????? ????????????????????????? | | ?????????????????? ????????????????????????? | | ???###+#######???# #???????????????????????? | | ???# =? #???# ##??k ????????????????? | | #### +??? #?? ! k#???????????????? | | !![# """ #???# +?? a ####????????????? | | ![ # """""#???# #?? # # "?????????? | | ![ # ! """""#???# #?? ] # # "R"???????? | | # """""#???# #### " "???????? | | # """ ##### # ????????? | | = # + ?????????? | | ######/######### # # #??????????? | | % #????# ##?????????? | | #????# # #?????????? | | #???## r # #??????????? | | ####### #???# ########???? | | ??????? #???# % !] ????? | | ??????? #????# *Y !] """?????? | | ??????? #????###### !@ ! """?????? | | ??????? #?????????# %o!* / """?????? | | ??????? #?????????# #???? | | ??????? #?????????###r# +# """ #???? | | ??????? ?????????? T #?? ""??????? | | ???????? ?????????# """ #????""??????? | | ???????? #????????# """ #????????????? | | ???????? #????????# """ #????????????? | | ???????? ?????????# #????????????? | | ????????????????????+ #????????????? | | ???????????????????## #????????????? | | ????????????????????#? #????????????? | | ???????????????????????########????????????? | | ???????????????????????????????????????????? | | ???????????????????????????????????????????? | | ???????????????????????????????????????????? | | ???????????????????????????????????????????? | | ???????????????????????????????????????????? | | ???????????????????????????????????????????? | | ???????????????????????????????????????????? | | ???????????????????????????????????????????? | | ???????????????????????????????????????????? | | ???????????????????????????????????????????? | | ???????????????????????????????????????????? | | ???????????????????????????????????????????? | +----------------------------------------------------+ Best States ------------- Heat Dissipation 28 Energy Generation 10 Energy Capacity 250 Matter Stores 300 Matter Capacity 300 Sight Range 16 Terrain Scan Density 10 Core Shielding 20 Evasion (%) 55 Item Schematics ----------------- None Robot Schematics ------------------ None Fabricated ------------ Nothing Alien Tech Used ----------------- None Achievements -------------- Everything Is Under Control Challenges ------------ None Game ------ Seed BiomechanicalHardcellLoader Manual? 0 Play Time 00:15:53 Cumulative 9.9 hours Start 2023.11.25 @ 13:56:04 End 2023.11.25 @ 14:07:32 Sessions 1 Manual Loads 0 Difficulty Rogue Special Mode None Game No. 28 Rogue 28 Adventurer 0 Explorer 0 Win Type - Total 0 Types 0/0/0/0/0/0/0/0/0 Lore% 8 Gallery% 12 Achievement% 4 Wizard Run 0 Options --------- ASCII 0 Keyboard 0 Movement Mouse Keybinds 0 Fullscreen 1 Font 24/Smallcaps Map View 113x50 Tactical HUD 0 Map Filters NONE Filters NONE Steam 1 RUN: 5857e98c-f6a2-4dac-a438-2f238915e8ef